bitfinex/quotes_ETHUSD_20241009
["timestamp","ask_amount","ask_price","bid_price","bid_amount"]
[1728471351982,1.74900383,2437.0,2436.7,4.1038]
[1728471353495,1.74900383,2437.0,2436.7,8.20764]
[1728471356376,5.85209383,2437.2,2436.7,4.1038]
[1728471356574,3.0,2437.2,2436.9,4.10355]
[1728471356816,7.48,2437.4,2437.1,4.10314]
[1728471357108,2.17788273,2437.5,2437.1,4.10314]
[1728471357316,5.85164383,2437.5,2437.1,4.10314]
[1728471362389,1.74900383,2437.5,2437.2,4.10304]
[1728471362731,1.74900383,2437.5,2437.2,4.88484]
[1728471362885,1.74900383,2437.5,2437.2,0.7818]
[1728471363085,4.53090412,2437.8,2437.3,8.20566]
[1728471363309,6.27990795,2437.8,2437.3,8.20566]
[1728471363515,4.10222,2437.7,2437.3,4.10283]
[1728471363889,1.74900383,2437.6,2437.2,0.7818]
[1728471364084,0.42883412,2437.8,2436.9,4.10344]
[1728471364085,4.1029,2437.3,2436.9,4.88424]
[1728471364288,5.85176383,2437.4,2436.9,4.88424]
[1728471364521,5.85176383,2437.4,2437.0,4.10336]
[1728471365200,5.85176383,2437.4,2436.9,8.98768]
[1728471366502,5.85176383,2437.4,2436.9,4.88424]
[1728471367937,3.42883412,2437.8,2437.0,0.7886]
[1728471368157,4.10247,2437.6,2437.1,0.87066044]
[1728471368304,5.85163383,2437.5,2437.1,0.7886]
[1728471369034,5.85163383,2437.5,2437.1,4.89182]
[1728471370942,1.74900383,2437.3,2436.9,0.8326]
[1728471371162,1.74900383,2437.1,2436.8,4.10361]
[1728471371468,1.74900383,2437.1,2436.8,4.10359]
[1728471371806,1.74900383,2437.1,2436.8,8.20726]
[1728471372006,1.74900383,2437.1,2436.8,8.20725]
[1728471372229,5.85192383,2437.3,2436.8,8.20725]
[1728471372449,5.85192383,2437.3,2436.9,4.10357]
[1728471373257,5.85192383,2437.3,2436.8,8.20723]
[1728471373464,1.74900383,2437.1,2436.7,4.93648]
[1728471373666,5.85231383,2437.1,2436.7,4.93648]
[1728471373950,5.85231383,2437.1,2436.7,0.8326]
[1728471375050,5.85231383,2437.1,2436.7,4.9365]
[1728471378685,1.74900383,2437.1,2436.8,4.10372]
[1728471379682,4.10314,2437.2,2436.8,4.10372]
[1728471383197,8.20631,2437.2,2436.7,4.9365]
[1728471383896,4.10314,2437.2,2436.7,9.04031]
[1728471384491,4.10314,2437.2,2436.7,4.93641]
[1728471384794,4.10323,2437.1,2436.7,4.93641]
[1728471390600,4.10323,2437.1,2436.7,0.8326]
[1728471390785,4.10323,2437.1,2436.6,4.10404]
[1728471390993,4.10323,2437.1,2436.6,8.20802]
[1728471391193,4.10323,2437.1,2436.7,4.10387]
[1728471391862,8.40980012,2437.2,2436.7,4.10387]
[1728471393383,4.10326,2437.1,2436.7,4.10387]
[1728471396622,4.10326,2437.1,2436.7,4.89167]
[1728471401618,4.10314,2437.2,2436.7,4.89167]
[1728471402119,8.20632,2437.2,2436.7,4.89167]
[1728471403334,4.10314,2437.2,2436.7,4.89167]
[1728471404128,3.0,2437.3,2437.0,4.9198]
[1728471405032,4.10281,2437.4,2437.0,4.9198]
[1728471405340,8.20563,2437.4,2437.0,4.9198]
[1728471405927,8.20563,2437.4,2437.0,0.8165]
[1728471406235,9.95463383,2437.4,2437.0,0.8165]
[1728471407641,9.95464383,2437.4,2437.0,0.8165]
[1728471411845,4.1029,2437.3,2437.0,1.3167025]
[1728471413440,4.1029,2437.3,2437.0,0.8165]
[1728471419053,8.20568,2437.4,2437.0,0.8165]
[1728471419356,4.10281,2437.4,2437.0,0.8165]
[1728471420220,8.20563,2437.4,2437.0,0.8165]
[1728471420755,9.95463383,2437.4,2437.0,0.8165]
[1728471421342,4.10291,2437.3,2437.0,0.8165]
[1728471423157,1.74900383,2437.2,2437.0,0.8165]
[1728471424556,4.10291,2437.3,2437.0,0.8165]
[1728471431568,4.10307,2437.2,2437.0,0.8165]
[1728471432077,4.10302,2437.3,2437.0,0.8165]
[1728471432222,4.10309,2437.2,2437.0,0.8165]
[1728471432425,8.20604,2437.3,2437.0,0.8165]
[1728471432625,4.74619587,2437.2,2437.0,0.8165]
[1728471432899,0.64311587,2437.2,2437.0,0.8165]
[1728471434855,4.74625587,2437.2,2437.0,0.8165]
[1728471436647,0.64311587,2437.2,2437.0,0.8165]
[1728471437180,4.74624587,2437.2,2437.0,0.8165]
[1728471439664,0.64311587,2437.2,2437.0,0.8165]
[1728471440516,4.74618587,2437.2,2437.0,0.8165]
[1728471455830,0.64311587,2437.2,2437.0,0.8165]
[1728471456030,4.10288,2437.4,2437.0,0.8165]
[1728471458519,8.2057,2437.4,2437.0,0.8165]
[1728471463508,4.10291,2437.3,2437.0,0.8165]
[1728471465135,5.85212383,2437.2,2437.0,0.8165]
[1728471465342,5.85212383,2437.2,2436.8,0.7998]
[1728471465909,4.10357,2436.9,2436.8,0.7998]
[1728471466125,4.10357,2436.9,2436.5,0.7812]
[1728471470607,4.10374,2436.8,2436.5,0.7812]
[1728471471960,4.10359,2436.9,2436.5,0.7812]
[1728471472754,4.10405,2436.7,2436.5,0.7812]
[1728471480047,4.10404,2436.7,2436.5,0.7812]
[1728471480247,4.10407,2436.6,2436.1,4.10489]
[1728471480435,4.10407,2436.6,2436.2,0.7953]
[1728471480963,4.10431,2436.5,2436.2,0.7953]
[1728471481162,4.10448,2436.4,2436.2,0.7953]
[1728471481369,4.10458,2436.3,2436.2,0.7953]
[1728471481735,4.10458,2436.3,2436.0,0.7953]
[1728471482863,8.20927,2436.3,2436.0,0.7953]
[1728471483195,4.10475,2436.2,2436.0,0.7953]
[1728471483777,4.10492,2436.1,2436.0,0.7953]
[1728471484176,4.10492,2436.1,2435.7,4.10557]
[1728471484360,4.10492,2436.1,2435.7,4.926705]
[1728471485082,4.10492,2436.1,2435.8,0.7961]
[1728471499413,7.10409,2436.6,2436.1,4.90245]
[1728471499731,4.10384,2436.8,2436.3,0.7976]
[1728471500422,4.10408,2436.6,2436.3,0.7976]
[1728471501227,4.10408,2436.6,2436.3,1.29603582]
[1728471502631,4.10408,2436.6,2436.3,0.7976]
[1728471503631,8.20825,2436.6,2436.3,0.7976]
[1728471503831,4.10408,2436.6,2436.3,0.7976]
[1728471508145,4.10425,2436.5,2436.3,0.7976]
[1728471508311,4.10441,2436.4,2436.1,0.8136]
[1728471508910,4.10459,2436.3,2435.9,4.91869]
[1728471509237,4.10459,2436.3,2435.9,5.66757288]
[1728471512237,4.10459,2436.3,2435.9,9.77274288]
[1728471513212,4.10444,2436.4,2435.9,9.77274288]
[1728471515348,4.10444,2436.4,2435.9,5.66757288]
[1728471515652,4.10444,2436.4,2436.0,4.10504]
[1728471516571,4.10444,2436.4,2435.9,0.8136]
[1728471516860,4.10463,2436.3,2435.9,4.91885]
[1728471520253,1.74900383,2436.5,2435.9,4.91885]
[1728471520254,4.10442,2436.4,2435.9,4.91885]
[1728471520458,4.10475,2436.2,2435.9,0.8136]
[1728471521427,4.10459,2436.3,2435.9,0.8136]
[1728471521961,4.10459,2436.3,2435.9,4.91885]
[1728471523267,1.74900383,2436.5,2435.9,4.91885]
[1728471523461,4.10442,2436.4,2435.9,4.91885]
[1728471525152,4.10442,2436.4,2436.0,4.10508]
[1728471526242,8.20894,2436.4,2436.0,4.10508]
[1728471526457,4.10442,2436.4,2436.0,4.10508]
[1728471527063,4.10469,2436.3,2435.9,4.91883]
[1728471527384,4.1045,2436.4,2436.0,4.10505]
[1728471528260,4.1045,2436.4,2435.9,4.91883]
[1728471528463,4.1045,2436.4,2435.9,9.024]
[1728471528870,4.10459,2436.3,2435.9,4.91877]
[1728471529774,4.10459,2436.3,2435.9,9.02394]
[1728471529950,4.10459,2436.3,2435.9,4.91877]
[1728471535528,4.10459,2436.3,2435.9,9.02395]
[1728471537376,4.10459,2436.3,2435.9,4.91877]
[1728471537578,4.10459,2436.3,2435.9,9.02394]
[1728471538775,1.74900383,2436.7,2436.3,0.776]
[1728471538776,3.0,2436.6,2436.3,0.776]
[1728471538971,3.0,2436.6,2436.3,4.88056]
[1728471540349,3.0,2436.8,2436.5,4.10423]
[1728471540556,3.0,2436.8,2436.4,4.10438]
[1728471540961,4.10367,2436.9,2436.4,4.10438]
[1728471541679,8.20735,2436.9,2436.4,4.10438]
[1728471545279,4.10367,2436.9,2436.4,4.10438]
[1728471545682,8.20735,2436.9,2436.4,4.10438]
[1728471545888,5.85277383,2436.8,2436.3,0.776]
[1728471546189,4.10399,2436.7,2436.3,0.776]
[1728471547081,5.85310383,2436.6,2436.1,4.10479]
[1728471549094,5.85310383,2436.6,2436.1,8.20964]
[1728471549414,5.85310383,2436.6,2436.1,4.10479]
[1728471549687,5.85310383,2436.6,2436.1,8.20962]
[1728471550388,5.85310383,2436.6,2436.1,4.10479]
[1728471550589,5.85310383,2436.6,2436.1,8.20961]
[1728471551374,5.85310383,2436.6,2436.1,8.20964]
[1728471552462,5.85310383,2436.6,2436.1,8.20963]
[1728471554428,5.85310383,2436.6,2436.1,4.10479]
[1728471554574,4.10386,2436.8,2436.2,4.10459]
[1728471554915,4.74900383,2436.9,2436.3,4.93266]
[1728471555077,7.10358,2436.9,2436.4,4.10426]
[1728471555278,7.10358,2436.9,2436.5,4.10422]
[1728471555279,3.0,2436.9,2436.5,4.10422]
[1728471556376,7.10359,2436.9,2436.4,4.1044]
[1728471560088,8.85259383,2436.9,2436.4,4.1044]
[1728471561330,8.85259383,2436.9,2436.3,4.93264]
[1728471561518,8.85259383,2436.9,2436.3,9.9897979]
[1728471562425,8.85259383,2436.9,2436.3,5.8852579]
[1728471564186,8.85259383,2436.9,2436.4,0.08208092]
[1728471566130,1.74900383,2436.9,2436.4,4.18646092]
[1728471566626,5.85225383,2437.1,2436.6,0.8029]
[1728471567500,4.10341,2437.0,2436.6,0.8029]
[1728471569230,4.10341,2437.0,2436.4,4.96449865]
[1728471569528,4.10341,2437.0,2436.4,5.96667631]
[1728471575360,4.10341,2437.0,2436.4,4.96449865]
[1728471575499,8.20689,2437.0,2436.4,4.96449865]
[1728471576349,4.10341,2437.0,2436.4,4.96449865]
[1728471591499,1.74900383,2437.1,2436.4,4.96447865]
[1728471591711,4.10341,2437.0,2436.4,4.8824]
[1728471596704,4.10341,2437.0,2436.4,8.98672]
[1728471597708,4.10341,2437.0,2436.4,4.8824]
[1728471598401,4.10341,2437.0,2436.4,8.98674]
[1728471600439,8.85226383,2437.1,2436.4,4.8824]
[1728471600585,8.85226383,2437.1,2436.5,4.10421]
[1728471600983,8.85226383,2437.1,2436.6,0.8328]
[1728471601412,1.74900383,2437.1,2436.6,4.93684]
[1728471601625,3.0,2437.2,2436.7,4.10384]
[1728471602292,4.74900383,2437.2,2436.7,4.10384]
[1728471602516,4.74900383,2437.2,2436.8,0.7941]
[1728471603053,4.74900383,2437.2,2436.8,4.89781]
[1728471603732,4.74900383,2437.2,2436.8,0.7941]
[1728471605104,8.85207383,2437.2,2436.8,0.7941]
[1728471607300,1.74900383,2437.0,2436.5,4.88233]
[1728471607502,1.74900383,2436.8,2436.5,0.7781]
[1728471612422,5.85248383,2437.0,2436.5,0.7781]
[1728471614002,9.95597383,2437.0,2436.5,0.7781]
[1728471614350,1.74900383,2437.0,2436.5,4.8822]
[1728471614514,8.85218383,2437.2,2436.7,0.7598]
[1728471614837,4.74900383,2437.2,2436.7,4.86364]
[1728471617034,1.74900383,2437.0,2436.7,0.7598]
[1728471627919,1.74900383,2437.0,2436.7,0.75856603]
[1728471633062,5.85247383,2437.0,2436.5,4.91621]
[1728471637785,1.74900383,2436.8,2436.5,0.812]
[1728471641144,1.74900383,2436.8,2436.5,4.91623]
[1728471641340,1.74900383,2436.8,2436.5,0.812]
[1728471655671,1.74900383,2436.8,2436.5,4.91623]
[1728471656994,1.74900383,2436.8,2436.5,0.812]
[1728471659365,1.74900383,2436.6,2435.7,2.58718598]
[1728471659602,1.74900383,2436.4,2435.8,0.7679]
[1728471667331,1.74740383,2436.4,2435.8,0.7679]
[1728471667520,1.74820383,2436.5,2435.8,0.7679]
[1728471667817,1.74660383,2436.5,2435.8,0.7679]
[1728471668022,1.74580383,2436.5,2435.8,0.7679]
[1728471668212,1.74260383,2436.5,2435.8,0.7679]
[1728471668408,1.74260383,2436.5,2435.9,0.08209223]
[1728471668409,1.74020383,2436.5,2435.9,0.08209223]
[1728471668612,1.74900383,2436.6,2436.0,0.8133]
[1728471668928,1.74740383,2436.6,2436.0,0.8133]
[1728471669115,1.74420383,2436.6,2436.0,0.8133]
[1728471669425,1.74180383,2436.6,2436.0,0.8133]
[1728471669628,1.74100383,2436.6,2436.0,0.8133]
[1728471669843,1.73940383,2436.6,2436.0,0.8133]
[1728471670043,1.73620383,2436.6,2436.0,0.8133]
[1728471670352,1.73380383,2436.6,2436.0,0.8133]
[1728471670532,1.73300383,2436.6,2436.0,0.8133]
[1728471670841,1.72900383,2436.6,2436.0,0.8133]
[1728471671044,1.72660383,2436.6,2436.0,0.8133]
[1728471671408,1.72420383,2436.6,2436.0,0.8133]
[1728471671609,1.72340383,2436.6,2436.0,0.8133]
[1728471688564,0.4287485,2436.8,2436.2,0.775]
[1728471688768,0.4287485,2436.8,2436.4,0.775]
[1728471689066,1.74900383,2436.9,2436.4,0.775]
[1728471691301,1.74900383,2436.7,2436.4,0.775]
[1728471698779,3.42872377,2437.2,2435.5,2.78926333]
[1728471698780,1.74900383,2436.5,2435.8,0.7767]
[1728471698985,1.74900383,2436.0,2435.8,0.7767]
[1728471703622,1.74900383,2436.2,2435.8,0.7767]
[1728471708017,1.74900383,2436.3,2435.8,0.7767]
[1728471718365,1.74900383,2436.1,2435.8,0.7767]
[1728471719027,0.20815431,2436.6,2435.8,0.7767]
[1728471719226,0.20815431,2436.6,2435.7,1.74900383]
[1728471719227,1.74900383,2436.8,2435.9,0.25257038]
[1728471719547,1.74900383,2436.8,2436.0,0.8294]
[1728471720659,1.74900383,2436.8,2436.1,0.08208674]
[1728471720866,1.74900383,2436.8,2436.2,0.8294]
[1728471722227,7.48,2437.2,2436.3,0.08208471]
[1728471722440,1.74900383,2437.3,2436.3,2.01505268]
[1728471722636,1.74900383,2437.3,2436.4,0.08207162]
[1728471723458,1.74900383,2437.3,2436.5,0.7865]
[1728471723642,1.74900383,2437.3,2436.7,0.7865]
[1728471725192,1.74900383,2437.2,2436.7,0.7865]
[1728471725354,1.74900383,2437.4,2436.8,0.08206456]
[1728471725548,1.74900383,2437.4,2436.9,0.7742]
[1728471726851,1.74900383,2437.2,2436.9,0.7742]
[1728471729693,1.74900383,2437.4,2436.9,0.7742]
[1728471731083,1.74900383,2437.2,2436.9,0.7742]
[1728471741501,0.42872681,2437.3,2436.9,0.7742]
[1728471741995,1.74900383,2437.4,2436.9,0.7742]
[1728471744125,3.0,2437.6,2436.9,0.7742]
[1728471744327,1.74900383,2437.4,2436.9,0.7742]
[1728471747221,7.48,2437.7,2437.0,0.08206153]
[1728471747498,7.48,2437.7,2437.1,0.805]
[1728471747499,1.74900383,2437.6,2437.1,0.805]
[1728471747607,7.48,2438.2,2437.2,0.08204745]
[1728471747808,1.74900383,2438.2,2437.2,0.08204745]
[1728471748045,1.74900383,2438.2,2437.3,0.7633]
[1728471748246,1.74900383,2438.0,2437.4,0.08203952]
[1728471748752,1.74900383,2438.0,2437.5,0.7563]
[1728471748948,1.74900383,2438.0,2437.6,0.83833951]
[1728471749109,1.74900383,2438.0,2437.6,0.7563]
[1728471750433,1.74900383,2437.8,2437.6,0.7563]
[1728471755045,1.74900383,2437.8,2437.1,0.7902]
[1728471755246,1.74900383,2437.6,2437.1,0.7902]
[1728471763135,1.74900383,2437.4,2437.1,0.7902]
[1728471769238,1.74900383,2437.6,2437.1,0.7902]
[1728471770969,0.6321401,2437.8,2437.1,0.7902]
[1728471771269,2.1777429,2437.8,2437.1,0.7902]
[1728471781185,1.74900383,2437.6,2437.1,0.7902]
[1728471781988,1.74900383,2437.4,2437.1,0.7902]
[1728471789158,1.74900383,2437.4,2437.1,0.783]
[1728471789787,1.74900383,2437.4,2437.1,0.7822]
[1728471789992,1.74900383,2437.4,2437.1,0.7806]
[1728471790196,1.74900383,2437.4,2437.1,0.7758]
[1728471790691,1.74900383,2437.4,2437.1,0.7742]
[1728471791006,1.74900383,2437.4,2437.1,0.7686]
[1728471791155,1.74900383,2437.4,2437.1,0.7678]
[1728471793482,1.74900383,2437.4,2437.1,0.7502]
[1728471794918,0.014,2437.7,2437.1,0.7502]
[1728471794919,1.74900383,2437.6,2437.1,0.7502]
[1728471801916,1.74900383,2437.7,2437.1,0.7502]
[1728471802715,1.74900383,2437.9,2437.1,0.7502]
[1728471806522,1.74783793,2437.9,2437.1,0.7502]
[1728471809435,7.48,2438.1,2437.3,0.7686]
[1728471809589,7.48,2438.1,2437.2,0.08205398]
[1728471809590,1.74900383,2438.1,2437.5,0.7686]
[1728471813302,1.74900383,2438.1,2437.6,0.08204019]
[1728471813626,0.64289579,2438.2,2437.7,0.7686]
[1728471813925,0.64289579,2438.2,2437.9,0.7686]
[1728471814131,0.64289579,2438.2,2437.9,0.85062844]
[1728471814593,0.64289579,2438.2,2437.9,0.7686]
[1728471816438,1.74900383,2438.5,2437.9,0.7686]
[1728471816738,2.39183892,2438.5,2437.9,0.7686]
[1728471818421,0.64283509,2438.5,2437.9,0.7686]
[1728471818619,1.74900383,2438.4,2437.9,0.7686]
[1728471835974,1.74900383,2438.0,2437.9,0.7686]
[1728471836390,1.74900383,2438.0,2437.2,0.8159]
[1728471836696,1.74900383,2437.8,2437.2,0.8159]
[1728471836994,1.74900383,2437.8,2437.3,0.8047]
[1728471837349,1.74900383,2437.8,2437.3,0.8867459]
[1728471840871,1.74900383,2437.8,2437.3,0.8047]
[1728471841190,1.74900383,2437.6,2437.3,0.8047]
[1728471841505,0.64283509,2438.5,2437.3,0.8047]
[1728471841506,1.74900383,2437.4,2437.3,0.8047]
[1728471841697,1.74900383,2437.6,2437.3,0.8047]
[1728471845290,1.74900383,2437.4,2437.3,0.8047]
[1728471845602,1.74900383,2437.4,2436.3,2.0766434]
[1728471845788,1.74900383,2437.4,2436.5,0.787]
[1728471846203,1.74900383,2437.4,2436.7,0.787]
[1728471849044,0.0412,2437.5,2436.9,0.8105]
[1728471849204,1.74900383,2437.6,2437.0,0.08205581]
[1728471849410,1.74900383,2437.6,2437.1,0.8259]
[1728471849611,1.74900383,2437.8,2437.3,0.8259]
[1728471855063,1.74900383,2437.6,2437.3,0.8259]
[1728471857139,1.74900383,2437.4,2437.1,0.7813]
[1728471858362,1.74900383,2437.2,2436.5,0.7813]
[1728471859302,1.74900383,2437.0,2436.5,0.7813]
[1728471865202,1.74900383,2437.0,2435.7,5.06160308]
[1728471865203,1.74900383,2436.6,2435.3,15.42395337]
[1728471865410,1.74900383,2436.2,2435.6,0.8313]
[1728471868087,2.39239581,2436.2,2435.6,0.8313]
[1728471868824,2.39239581,2436.2,2435.7,0.08210352]
[1728471871404,2.39239581,2436.2,2435.6,0.8313]
[1728471871615,2.39239581,2436.2,2435.7,0.08210359]
[1728471873468,2.39239581,2436.2,2435.7,0.08210354]
[1728471874170,2.39239581,2436.2,2435.6,0.8313]
[1728471891379,2.43359581,2436.2,2435.6,0.8313]
[1728471893686,2.39239581,2436.2,2435.6,0.8313]
[1728471904963,0.0412,2436.1,2435.6,0.8313]
[1728471911016,2.39239581,2436.2,2435.6,0.8313]
[1728471911217,0.64339198,2436.2,2435.8,0.8214]
[1728471911531,0.64339198,2436.2,2435.9,0.8214]
[1728471911733,0.64339198,2436.2,2436.0,0.08209299]
[1728471912028,1.74900383,2436.5,2435.7,0.08209306]
[1728471912238,2.39234257,2436.5,2436.1,0.8034]
[1728471912526,1.74900383,2436.3,2436.1,0.8034]
[1728471913107,2.39234257,2436.5,2436.1,0.8034]
[1728471913427,5.39234257,2436.5,2436.1,0.8034]
[1728471918239,1.74900383,2436.5,2436.1,0.8034]
[1728471924253,1.74900383,2436.3,2435.3,7.33352151]
[1728471924444,1.74900383,2436.3,2435.4,0.73335215]
[1728471924850,1.74900383,2436.1,2435.5,0.7667]
[1728471925169,1.74900383,2436.1,2435.6,0.65767645]
[1728471925492,1.74900383,2436.1,2435.5,0.7667]
[1728471925661,1.74900383,2436.1,2435.6,0.6576818]
[1728471925959,1.74900383,2436.1,2435.5,0.7667]
[1728471926263,1.74900383,2436.1,2435.8,0.7667]
[1728471926551,1.74900383,2436.1,2435.9,0.65766854]
[1728471926760,1.74900383,2436.1,2436.0,0.65766854]
[1728471927621,1.74900383,2436.1,2435.9,0.64107269]
[1728471928157,1.74900383,2436.1,2436.0,0.76928723]
[1728471930882,1.74900383,2436.1,2436.0,0.76942131]
[1728471932287,1.84356992,2436.1,2436.0,0.76942131]
[1728471938788,0.09456609,2436.1,2436.0,0.76942131]
[1728471939157,1.79020383,2436.3,2436.0,0.76942131]
[1728471939486,1.79020383,2436.3,2436.1,0.76958744]
[1728471939687,1.79020383,2436.3,2436.2,0.76958744]
[1728471940701,1.79020383,2436.3,2435.8,0.7667]
[1728471940848,1.79020383,2436.3,2436.2,0.76965567]
[1728471943157,1.74900383,2436.3,2436.2,0.76965567]
[1728471947471,1.74900383,2436.3,2436.1,0.8052]
[1728471947668,1.74900383,2436.3,2436.2,0.770042]
[1728471949315,1.84329396,2436.3,2436.2,0.770042]
[1728471950754,1.84329396,2436.3,2435.9,0.8177]
[1728471950994,1.84329396,2436.3,2436.0,0.77010207]
[1728471951371,1.84329396,2436.3,2436.1,0.77010207]
[1728471951683,1.84329396,2436.3,2436.2,0.77010207]
[1728471954692,1.88449396,2436.3,2436.2,0.77010207]
[1728471956496,1.84329396,2436.3,2436.2,0.77010207]
[1728471957612,1.84329396,2436.3,2435.9,0.8177]
[1728471957772,1.84329396,2436.3,2436.0,0.64201289]
[1728471958178,1.84329396,2436.3,2436.1,0.77041547]
[1728471958480,1.84329396,2436.3,2436.0,0.64201289]
[1728471958481,1.84329396,2436.3,2436.2,0.77041547]
[1728471960626,1.84329396,2436.3,2435.9,0.8177]
[1728471960774,1.84329396,2436.3,2436.2,0.77038413]
[1728471960975,1.84329396,2436.3,2436.0,1.41237091]
[1728471961173,1.84329396,2436.3,2436.1,0.77038413]
[1728471961412,1.84329396,2436.3,2436.2,0.77038413]
[1728471962322,0.09429013,2436.3,2436.2,0.77038413]
[1728471962479,1.79020383,2436.5,2436.0,0.64198678]
[1728471962812,0.094286,2436.4,2436.1,0.7702434]
[1728471962988,0.094286,2436.4,2435.9,0.8177]
[1728471964195,0.094286,2436.4,2436.0,0.64198678]
[1728471964519,3.0,2436.8,2436.1,0.77]
[1728471964723,0.09428889,2436.3,2436.1,2.60109501]
[1728471964887,0.09428889,2436.3,2436.2,0.2601095]
[1728471965077,0.09428889,2436.3,2436.2,0.8167]
[1728471965435,9.22900383,2436.9,2436.2,0.8167]
[1728471965579,9.22900383,2436.9,2435.9,1.74900383]
[1728471965580,1.74900383,2436.9,2436.3,0.89878313]
[1728471965783,1.74900383,2436.9,2436.3,0.8167]
[1728471969227,1.74900383,2436.9,2436.3,0.8987832]
[1728471969985,0.88569129,2437.1,2436.4,0.0820832]
[1728471970229,0.84449129,2437.1,2436.5,0.7866]
[1728471970561,0.84449129,2437.1,2436.1,1.74900383]
[1728471970562,0.64334082,2437.1,2436.7,0.7866]
[1728471972531,1.74900383,2437.0,2436.7,0.7866]
[1728471973787,0.64334082,2437.1,2436.7,0.7866]
[1728471974457,0.64334082,2437.1,2436.8,0.86286838]
[1728471975155,1.74900383,2437.4,2436.8,0.7808]
[1728471976008,0.0412,2437.7,2436.9,0.08206198]
[1728471976251,1.74900383,2437.5,2436.7,0.7808]
[1728471976419,0.0412,2437.7,2436.8,0.46013998]
[1728471976420,1.99834532,2437.7,2436.8,0.46013998]
[1728471976944,1.74900383,2437.5,2436.8,0.46013998]
[1728471977149,1.74900383,2437.5,2436.8,0.08205998]
[1728471977332,1.74900383,2437.5,2436.9,0.7766]
[1728471977536,1.74900383,2437.5,2437.0,0.08205815]
[1728471977840,1.74900383,2437.5,2437.1,0.7766]
[1728471978508,0.0412,2437.9,2436.5,1.74900383]
[1728471978509,1.74900383,2437.7,2437.3,0.7601]
[1728471979054,0.0412,2437.9,2437.3,0.7601]
[1728471979055,0.09165466,2437.6,2437.3,0.7601]
[1728471979403,1.74900383,2437.7,2437.3,0.7601]
[1728471979910,0.0915995,2437.6,2437.3,0.7601]
[1728472003485,0.0915995,2437.6,2437.5,0.773]
[1728472003668,1.74900383,2438.0,2437.5,0.773]
[1728472004080,0.08900266,2437.9,2437.5,0.773]
[1728472014628,0.08900266,2437.9,2437.6,0.84974127]
[1728472014826,0.08900266,2437.9,2437.6,0.7677]
[1728472019244,0.08900266,2437.9,2437.6,0.7677]
[1728472020199,1.74900383,2438.0,2437.6,0.7677]
[1728472020438,0.08336696,2437.8,2437.6,0.7677]
[1728472020641,1.74900383,2438.0,2437.6,0.7677]
[1728472020945,0.08337916,2437.9,2437.6,0.7677]
[1728472021105,1.74900383,2438.0,2437.6,0.7677]
[1728472021305,0.08337916,2437.9,2437.6,0.7677]
[1728472021736,1.74900383,2438.0,2437.6,0.7677]
[1728472021931,0.0833759,2437.9,2437.6,0.7677]
[1728472022151,1.74900383,2438.0,2437.6,0.7677]
[1728472022324,0.0833759,2437.9,2437.6,0.7677]
[1728472022535,1.74900383,2438.0,2437.6,0.7677]
[1728472022698,0.0833759,2437.9,2437.6,0.7677]
[1728472022899,1.74900383,2438.0,2437.6,0.7677]
[1728472023202,0.0833759,2437.9,2437.6,0.7677]
[1728472024724,1.74900383,2438.0,2437.6,0.7677]
[1728472024928,0.08338967,2437.9,2437.6,0.7677]
[1728472026855,0.08338967,2437.9,2437.7,0.7637965]
[1728472027061,0.08338967,2437.9,2437.6,0.7677]
[1728472028830,0.08338967,2437.9,2437.7,0.38321125]
[1728472029036,0.08338967,2437.9,2437.8,0.38321125]
[1728472031560,0.08338967,2437.9,2437.6,0.7677]
[1728472031760,0.08338967,2437.9,2437.8,0.38315513]
[1728472032066,1.8323935,2437.9,2437.8,0.38315513]
[1728472032223,1.8323935,2437.9,2437.6,0.7677]
[1728472045459,1.74900383,2437.7,2437.6,0.7677]
[1728472045679,1.8323935,2437.9,2437.6,0.7677]
[1728472046105,1.74900383,2437.9,2437.6,0.7677]
[1728472046306,0.08272838,2437.8,2437.1,0.63860825]
[1728472046515,0.08272838,2437.8,2437.2,0.7653]
[1728472047774,0.08272838,2437.8,2437.4,0.7653]
[1728472048178,0.08272838,2437.8,2437.2,0.63860825]
[1728472048179,0.08272838,2437.8,2437.6,0.7698]
[1728472048941,1.74900383,2438.2,2437.6,0.7698]
[1728472049824,1.74900383,2438.2,2437.7,0.08203705]
[1728472050416,1.74900383,2438.2,2437.8,0.7804]
[1728472054354,0.08292501,2438.1,2437.8,0.7804]
[1728472057749,1.74900383,2438.1,2437.8,0.7804]
[1728472057953,0.08020124,2438.0,2437.8,0.7804]
[1728472062784,0.08020124,2438.0,2437.8,0.77944744]
[1728472063514,0.08020124,2438.0,2437.1,4.74900383]
[1728472063814,0.08020124,2438.0,2437.2,3.76588909]
[1728472064037,0.08020124,2438.0,2437.3,0.76588909]
[1728472064193,0.08020124,2438.0,2437.4,0.76588909]
[1728472064372,0.08020124,2438.0,2437.5,0.76588909]
[1728472064590,0.08020124,2438.0,2437.0,3.0]
[1728472064796,1.74900383,2437.9,2437.1,0.76600716]
[1728472065136,1.74900383,2437.9,2437.0,3.0]
[1728472065499,1.74900383,2437.9,2437.2,0.76602624]
[1728472065697,1.74900383,2437.9,2437.3,0.76602624]
[1728472065898,0.08014796,2437.8,2437.5,0.7566]
[1728472066402,1.74900383,2437.9,2437.6,0.76600241]
[1728472066600,1.74900383,2437.9,2437.5,0.7566]
[1728472066798,1.74900383,2437.9,2437.6,0.76598787]
[1728472066799,0.08013212,2437.8,2437.6,0.76598787]
[1728472067031,0.08013212,2437.8,2437.5,0.7566]
[1728472067237,0.08013212,2437.8,2437.6,0.76605153]
[1728472067420,1.74900383,2437.9,2437.5,0.7566]
[1728472067739,1.74900383,2437.9,2437.6,0.76603405]
[1728472067942,0.08013807,2437.8,2437.5,0.7566]
[1728472068147,1.74900383,2437.9,2437.6,0.76602648]
[1728472068299,1.74900383,2437.9,2437.5,0.7566]
[1728472068503,0.08013807,2437.8,2437.5,0.7566]
[1728472068714,1.74900383,2437.9,2437.6,0.76606196]
[1728472068945,1.74900383,2437.9,2437.5,0.7566]
[1728472069158,0.08013618,2437.8,2437.6,0.76605087]
[1728472069444,0.08013618,2437.8,2437.5,0.7566]
[1728472069645,0.08013618,2437.8,2437.6,0.76605553]
[1728472069842,1.79120383,2438.1,2437.5,0.7566]